fUST/lending_fUST_20250203
["ID","MTS","AMOUNT","RATE_DAILY","PERIOD"]
[351327090,1738515063096,-500.0,0.0001726,2]
[351327091,1738515063110,-500.0,0.0001726,2]
[351327092,1738515063123,-500.0,0.0001726,2]
[351327093,1738515063135,-500.0,0.0001726,2]
[351327094,1738515063147,-500.0,0.0001726,2]
[351327095,1738515063387,-500.0,0.0001726,2]
[351327096,1738515063399,-500.0,0.0001726,2]
[351327097,1738515063411,-500.0,0.0001726,2]
[351327098,1738515063423,-500.0,0.0001726,2]
[351327099,1738515063435,-500.0,0.0001726,2]
[351327100,1738515063449,-500.0,0.0001726,2]
[351327101,1738515063461,-500.0,0.0001726,2]
[351327102,1738515063473,-515.19476654,0.0001726,2]
[351327103,1738515063486,-500.0,0.0001726,2]
[351327104,1738515063497,-500.0,0.0001726,2]
[351327105,1738515063509,-500.0,0.0001726,2]
[351327106,1738515063523,-500.0,0.0001726,2]
[351327107,1738515063537,-500.0,0.0001726,2]
[351327108,1738515063548,-500.0,0.0001726,2]
[351327109,1738515063560,-176.38575838,0.0001726,2]
[351327110,1738515063573,-500.0,0.0001726,2]
[351327111,1738515063585,-500.0,0.0001726,2]
[351327112,1738515063596,-505.26049825,0.0001726,2]
[351327113,1738515063610,-500.0,0.0001726,2]
[351327114,1738515063622,-151.0,0.0001726,2]
[351327115,1738515063633,-514.6326471,0.0001726,2]
[351327116,1738515063653,-500.0,0.0001726,2]
[351327117,1738515063665,-500.0,0.0001726,2]
[351327118,1738515063681,-596.45,0.0001726,2]
[351327119,1738515063696,-333.261829,0.0001726,2]
[351327120,1738515063710,-333.261829,0.0001726,2]
[351327121,1738515063723,-231.823016,0.0001726,2]
[351327122,1738515063736,-500.0,0.0001726,2]
[351327123,1738515063748,-231.823016,0.0001726,2]
[351327124,1738515063760,-500.0,0.0001726,2]
[351327125,1738515063771,-151.0,0.0001726,2]
[351327126,1738515063783,-151.0,0.0001726,2]
[351327127,1738515063794,-500.0,0.0001726,2]
[351327128,1738515063807,-500.0,0.0001726,2]
[351327129,1738515063820,-500.0,0.0001726,2]
[351327130,1738515063831,-500.0,0.0001726,2]
[351327131,1738515063843,-151.0,0.0001726,2]
[351327132,1738515063863,-151.0,0.0001726,2]
[351327133,1738515063876,-653.2,0.0001726,2]
[351327134,1738515063887,-2504.07,0.0001726,2]
[351327135,1738515063899,-500.0,0.0001726,2]
[351327136,1738515063911,-500.0,0.0001726,2]
[351327137,1738515063923,-500.0,0.0001726,2]
[351327138,1738515063935,-500.0,0.0001726,2]
[351327139,1738515063947,-500.0,0.0001726,2]
[351327140,1738515063958,-500.0,0.0001726,2]
[351327141,1738515063968,-500.0,0.0001726,2]
[351327142,1738515063980,-500.0,0.0001726,2]
[351327143,1738515063992,-500.0,0.0001726,2]
[351327144,1738515064003,-746.1,0.0001726,2]
[351327145,1738515064014,-500.0,0.0001726,2]
[351327146,1738515064025,-500.0,0.0001726,2]
[351327147,1738515064037,-500.0,0.0001726,2]
[351327148,1738515064048,-500.0,0.0001726,2]
[351327149,1738515064059,-151.0,0.0001726,2]
[351327150,1738515064070,-500.0,0.0001726,2]
[351327151,1738515064081,-3929.68,0.0001726,2]
[351327152,1738515064092,-1460.07,0.0001726,2]
[351327153,1738515064103,-7189.13,0.0001726,2]
[351327154,1738515064115,-500.0,0.0001726,2]
[351327155,1738515064126,-500.0,0.0001726,2]
[351327156,1738515064138,-1298.86,0.0001726,2]
[351327157,1738515064148,-500.0,0.0001726,2]
[351327158,1738515064159,-500.0,0.0001726,2]
[351327159,1738515064171,-500.0,0.0001726,2]
[351327160,1738515064183,-651.13,0.0001726,2]
[351327161,1738515064194,-1601.77,0.0001726,2]
[351327162,1738515064206,-500.0,0.0001726,2]
[351327163,1738515064216,-500.0,0.0001726,2]
[351327164,1738515064227,-500.0,0.0001726,2]
[351327165,1738515064238,-500.0,0.0001726,2]
[351327166,1738515064248,-500.0,0.0001726,2]
[351327167,1738515064259,-500.0,0.0001726,2]
[351327168,1738515064269,-500.0,0.0001726,2]
[351327169,1738515064279,-500.0,0.0001726,2]
[351327170,1738515064290,-500.0,0.0001726,2]
[351327171,1738515064301,-1406.01,0.0001726,2]
[351327172,1738515064312,-982.89,0.0001726,2]
[351327173,1738515064322,-500.0,0.0001726,2]
[351327174,1738515064333,-1665.67,0.0001726,2]
[351327175,1738515064344,-500.0,0.0001726,2]
[351327176,1738515064357,-500.0,0.0001726,2]
[351327177,1738515064367,-1358.33,0.0001726,2]
[351327178,1738515064377,-500.0,0.0001726,2]
[351327179,1738515064390,-7538.26,0.0001726,2]
[351327180,1738515064409,-500.0,0.0001726,2]
[351327181,1738515064420,-2353.63,0.0001726,2]
[351327182,1738515064430,-175.407742,0.0001726,2]
[351327183,1738515064442,-500.0,0.0001726,2]
[351327184,1738515064455,-151.0,0.0001726,2]
[351327185,1738515064466,-500.0,0.0001726,2]
[351327186,1738515064478,-175.407748,0.0001726,2]
[351327187,1738515064488,-500.0,0.0001726,2]
[351327188,1738515064499,-1333.99,0.0001726,2]
[351327189,1738515064510,-169.43,0.0001726,2]
[351327190,1738515064520,-17144.8,0.0001726,2]
[351327191,1738515064530,-222.68100981,0.0001726,2]
[351327192,1738515064542,-500.0,0.0001726,2]
[351327193,1738515064553,-500.0,0.0001726,2]
[351327194,1738515064564,-564.42,0.0001726,2]
[351327195,1738515064575,-521.2,0.0001726,2]
[351327196,1738515064587,-1292.9,0.0001726,2]
[351327197,1738515064599,-500.0,0.0001726,2]
[351327198,1738515064610,-500.0,0.0001726,2]
[351327199,1738515064625,-500.0,0.0001726,2]
[351327200,1738515064636,-767.09,0.0001726,2]
[351327201,1738515064653,-600.0,0.0001728,2]
[351327202,1738515064665,-537.41965281,0.00017315,2]
[351327203,1738515064677,-207.94563072,0.00017329,2]
[351327204,1738515064694,-500.0,0.00017352,2]
[351327205,1738515064706,-324.9964033,0.0001739,2]
[351327206,1738515064717,-500.0,0.00017397,2]
[351327207,1738515064729,-154.539088,0.00017397,2]
[351327208,1738515064740,-154.539088,0.00017397,2]
[351327209,1738515064751,-500.0,0.00017397,2]
[351327210,1738515064761,-500.0,0.00017397,2]
[351327211,1738515064772,-500.0,0.00017397,2]
[351327212,1738515064784,-500.0,0.00017397,2]
[351327213,1738515064794,-500.0,0.00017397,2]
[351327214,1738515064805,-500.0,0.00017397,2]
[351327215,1738515064816,-500.0,0.00017397,2]
[351327216,1738515064827,-500.0,0.00017397,2]
[351327217,1738515064837,-500.0,0.00017397,2]
[351327218,1738515064848,-500.0,0.00017397,2]
[351327219,1738515064865,-500.0,0.00017397,2]
[351327220,1738515064876,-500.0,0.00017397,2]
[351327221,1738515064887,-500.0,0.00017397,2]
[351327222,1738515064898,-500.0,0.00017397,2]
[351327223,1738515064909,-500.0,0.00017397,2]
[351327224,1738515064920,-500.0,0.00017397,2]
[351327225,1738515064931,-271.58163,0.00017397,2]
[351327226,1738515064943,-500.0,0.00017397,2]
[351327227,1738515064953,-596.45,0.00017397,2]
[351327228,1738515064964,-333.261829,0.00017397,2]
[351327229,1738515064974,-333.261829,0.00017397,2]
[351327230,1738515064984,-231.823016,0.00017397,2]
[351327231,1738515064993,-231.823016,0.00017397,2]
[351327232,1738515065003,-500.0,0.00017397,2]
[351327233,1738515065012,-500.0,0.00017397,2]
[351327234,1738515065022,-500.0,0.00017397,2]
[351327235,1738515065031,-151.0,0.00017397,2]
[351327236,1738515065041,-653.2,0.00017397,2]
[351327237,1738515065052,-2504.07,0.00017397,2]
[351327238,1738515065062,-500.0,0.00017397,2]
[351327239,1738515065072,-500.0,0.00017397,2]
[351327240,1738515065082,-500.0,0.00017397,2]
[351327241,1738515065091,-500.0,0.00017397,2]
[351327242,1738515065106,-500.0,0.00017397,2]
[351327243,1738515065116,-544.68887381,0.00017397,2]
[351327244,1738515065291,-500.0,0.00016438,2]
[351327245,1738515065301,-500.0,0.00016438,2]
[351327246,1738515065312,-500.0,0.00016438,2]
[351327247,1738515065323,-500.0,0.00016575,2]
[351327248,1738515065333,-500.0,0.00016575,2]
[351327249,1738515065343,-500.0,0.00016575,2]
[351327250,1738515065356,-615.11,0.00016712,2]
[351327251,1738515065366,-500.0,0.00016712,2]
[351327252,1738515065377,-500.0,0.00016849,2]
[351327253,1738515065388,-103.56050684,0.00017397,2]
[351327254,1738515065398,-500.0,0.00017397,2]
[351327255,1738515065409,-151.0,0.00017397,2]
[351327256,1738515065420,-500.0,0.00017397,2]
[351327257,1738515065429,-746.1,0.00017397,2]
[351327258,1738515065439,-500.0,0.00017397,2]
[351327259,1738515065449,-577.502583,0.00017397,2]
[351327260,1738515065460,-151.0,0.00017397,2]
[351327261,1738515065469,-500.0,0.00017397,2]
[351327262,1738515065479,-577.502583,0.00017397,2]
[351327263,1738515065489,-500.0,0.00017397,2]
[351327264,1738515065499,-151.0,0.00017397,2]
[351327265,1738515065509,-3929.68,0.00017397,2]
[351327266,1738515065518,-1460.07,0.00017397,2]
[351327267,1738515065529,-7189.13,0.00017397,2]
[351327268,1738515065539,-500.0,0.00017397,2]
[351327269,1738515065549,-1298.86,0.00017397,2]
[351327270,1738515065559,-500.0,0.00017397,2]
[351327271,1738515065570,-500.0,0.00017397,2]
[351327272,1738515065578,-651.13,0.00017397,2]
[351327273,1738515065588,-1601.77,0.00017397,2]
[351327274,1738515065598,-500.0,0.00017397,2]
[351327275,1738515065615,-500.0,0.00017397,2]
[351327276,1738515065626,-590.78,0.00017397,2]
[351327277,1738515065636,-500.0,0.00017397,2]
[351327278,1738515065652,-500.0,0.00017397,2]
[351327279,1738515065664,-500.0,0.00017397,2]
[351327280,1738515065674,-532.81809862,0.00017397,2]
[351327281,1738515065684,-1406.01,0.00017397,2]
[351327282,1738515065696,-500.0,0.00017397,2]
[351327283,1738515065708,-982.89,0.00017397,2]
[351327284,1738515065718,-1665.67,0.00017397,2]
[351327285,1738515065728,-500.0,0.00017397,2]
[351327286,1738515065739,-1358.33,0.00017397,2]
[351327287,1738515065749,-500.0,0.00017397,2]
[351327288,1738515065760,-7538.26,0.00017397,2]
[351327289,1738515065771,-500.0,0.00017397,2]
[351327290,1738515065783,-2353.63,0.00017397,2]
[351327291,1738515065794,-363.57,0.00017397,2]
[351327292,1738515065898,-500.0,0.00017397,2]
[351327293,1738515065909,-500.0,0.00017397,2]
[351327294,1738515065919,-1333.99,0.00017397,2]
[351327295,1738515065930,-17144.8,0.00017397,2]
[351327296,1738515065942,-474.23838745,0.00017397,2]
[351327297,1738515066050,-57.53265593,0.00017397,2]
[351327298,1738515066061,-500.0,0.00017397,2]
[351327299,1738515066071,-564.42,0.00017397,2]
[351327300,1738515066082,-521.2,0.00017397,2]
[351327301,1738515066093,-500.0,0.00017397,2]
[351327302,1738515066105,-1292.9,0.00017397,2]
[351327303,1738515066115,-500.0,0.00017397,2]
[351327304,1738515066125,-500.0,0.00017397,2]
[351327305,1738515066135,-767.09,0.00017397,2]
[351327306,1738515066146,-151.0,0.000174,2]
[351327307,1738515066158,-207.94563072,0.000174,2]
[351327308,1738515066168,-537.41965281,0.00017413,2]
[351327309,1738515066178,-222.68442188,0.00017454,2]
[351327310,1738515066189,-372.802,0.00017454,2]
[351327311,1738515066200,-207.94563072,0.00017471,2]
[351327312,1738515066210,-599.29600918,0.00017494,2]
[351327313,1738515066220,-151.0,0.000175,2]
[351327314,1738515066231,-537.41965281,0.0001751,2]
[351327315,1738515066241,-154.539088,0.00017534,2]
[351327316,1738515066252,-154.539088,0.00017534,2]
[351327317,1738515066261,-500.0,0.00017534,2]
[351327318,1738515066271,-500.0,0.00017534,2]
[351327319,1738515066281,-500.0,0.00017534,2]
[351327320,1738515066291,-500.0,0.00017534,2]
[351327321,1738515066301,-500.0,0.00017534,2]
[351327322,1738515066311,-500.0,0.00017534,2]
[351327323,1738515066321,-500.0,0.00017534,2]
[351327324,1738515066331,-500.0,0.00017534,2]
[351327325,1738515066342,-500.0,0.00017534,2]
[351327326,1738515066355,-596.45,0.00017534,2]
[351327327,1738515066367,-333.261829,0.00017534,2]
[351327328,1738515066378,-333.261829,0.00017534,2]
[351327329,1738515066388,-231.823016,0.00017534,2]
[351327330,1738515066399,-231.82302,0.00017534,2]
[351327331,1738515066409,-500.0,0.00017534,2]
[351327332,1738515066420,-151.0,0.00017534,2]
[351327333,1738515066430,-208.964424,0.00017534,2]
[351327334,1738515066440,-500.0,0.00017534,2]
[351327335,1738515066451,-500.0,0.00017534,2]
[351327336,1738515066462,-151.0,0.00017534,2]
[351327337,1738515066472,-653.2,0.00017534,2]
[351327338,1738515066484,-2504.07,0.00017534,2]
[351327339,1738515066494,-500.0,0.00017534,2]
[351327340,1738515066505,-500.0,0.00017534,2]
[351327341,1738515066516,-500.0,0.00017534,2]
[351327342,1738515066526,-500.0,0.00017534,2]
[351327343,1738515066537,-500.0,0.00017534,2]
[351327344,1738515066547,-151.0,0.00017534,2]
[351327345,1738515066557,-500.0,0.00017534,2]
[351327346,1738515066566,-746.1,0.00017534,2]
[351327347,1738515066576,-500.0,0.00017534,2]
[351327348,1738515066585,-577.502583,0.00017534,2]
[351327349,1738515066596,-500.0,0.00017534,2]
[351327350,1738515066609,-577.50258698,0.00017534,2]
[351327351,1738515066620,-500.0,0.00017534,2]
[351327352,1738515066631,-151.0,0.00017534,2]
[351327353,1738515066641,-265.567482,0.00017534,2]
[351327354,1738515066659,-3929.68,0.00017534,2]
[351327355,1738515066670,-1460.07,0.00017534,2]
[351327356,1738515066680,-446.98987997,0.00017534,2]
[351327357,1738515066944,-6742.14012003,0.00017534,2]
[351327358,1738515066954,-500.0,0.00017534,2]
[351327359,1738515066966,-1298.86,0.00017534,2]
[351327360,1738515066976,-500.0,0.00017534,2]
[351327361,1738515066985,-500.0,0.00017534,2]
[351327362,1738515066995,-651.13,0.00017534,2]
[351327363,1738515067005,-1601.77,0.00017534,2]
[351327364,1738515067015,-500.0,0.00017534,2]
[351327365,1738515067025,-500.0,0.00017534,2]
[351327366,1738515067034,-500.0,0.00017534,2]
[351327367,1738515067044,-500.0,0.00017534,2]
[351327368,1738515067055,-500.0,0.00017534,2]
[351327369,1738515067065,-1406.01,0.00017534,2]
[351327370,1738515067075,-982.89,0.00017534,2]
[351327371,1738515067085,-500.0,0.00017534,2]
[351327372,1738515067095,-1665.67,0.00017534,2]
[351327373,1738515067108,-500.0,0.00017534,2]
[351327374,1738515067117,-1358.33,0.00017534,2]
[351327375,1738515067127,-500.0,0.00017534,2]
[351327376,1738515067137,-7538.26,0.00017534,2]
[351327377,1738515067146,-500.0,0.00017534,2]
[351327378,1738515067156,-2353.63,0.00017534,2]
[351327379,1738515067166,-500.0,0.00017534,2]
[351327380,1738515067175,-500.0,0.00017534,2]
[351327381,1738515067185,-1333.99,0.00017534,2]
[351327382,1738515067195,-17144.8,0.00017534,2]
[351327383,1738515067205,-500.0,0.00017534,2]
[351327384,1738515067214,-564.42,0.00017534,2]
[351327385,1738515067224,-521.2,0.00017534,2]
[351327386,1738515067233,-639.1868298,0.00017534,2]
[351327387,1738515067243,-1292.9,0.00017534,2]
[351327388,1738515067252,-500.0,0.00017534,2]
[351327389,1738515067263,-767.09,0.00017534,2]
[351327390,1738515067272,-207.94563072,0.00017543,2]
[351327391,1738515067282,-621.0,0.000176,2]
[351327392,1738515067291,-537.41965281,0.00017608,2]
[351327393,1738515067301,-207.94563072,0.00017614,2]
[351327394,1738515067312,-304.40981294,0.00017671,2]
[351327395,1738515067397,-195.59018706,0.00017671,2]
[351327396,1738515067407,-500.0,0.00017671,2]
[351327397,1738515067417,-170.15105683,0.00017671,2]
[351327398,1738515067428,-500.0,0.00017671,2]
[351327399,1738515067439,-500.0,0.00017671,2]
[351327400,1738515067448,-327.51114575,0.00017671,2]
[351327401,1738515067457,-55.78262934,0.00017671,2]
[351327402,1738515067471,-444.21737066,0.00017671,2]
[351327403,1738515067481,-500.0,0.00017671,2]
[351327404,1738515067490,-596.45,0.00017671,2]
[351327405,1738515067499,-500.0,0.00017671,2]
[351327406,1738515067509,-151.0,0.00017671,2]
[351327407,1738515067519,-500.0,0.00017671,2]
[351327408,1738515067528,-500.0,0.00017671,2]
[351327409,1738515067538,-653.2,0.00017671,2]
[351327410,1738515067548,-2504.07,0.00017671,2]
[351327411,1738515067558,-500.0,0.00017671,2]
[351327412,1738515067568,-500.0,0.00017671,2]
[351327413,1738515067578,-453.10139497,0.00017671,2]
[351327414,1738515067589,-500.0,0.00017671,2]
[351327415,1738515067599,-500.0,0.00017671,2]
[351327416,1738515067612,-746.1,0.00017671,2]
[351327417,1738515067621,-500.0,0.00017671,2]
[351327418,1738515067631,-135.11964285,0.00017671,2]
[351327419,1738515067649,-364.88035715,0.00017671,2]
[351327420,1738515067658,-500.0,0.00017671,2]
[351327421,1738515067668,-3929.68,0.00017671,2]
[351327422,1738515067678,-1460.07,0.00017671,2]
[351327423,1738515067690,-764.81562975,0.00017671,2]
[351327424,1738515067702,-284.29353838,0.00017671,2]
[351327425,1738515067886,-151.0,0.00016438,2]
[351327426,1738515067896,-500.0,0.00016438,2]
[351327427,1738515067906,-500.0,0.00016438,2]
[351327428,1738515067915,-151.0,0.00016575,2]
[351327429,1738515067925,-215.5,0.00016575,2]
[351327430,1738515067938,-284.5,0.00016575,2]
[351327431,1738515067948,-151.0,0.00016575,2]
[351327432,1738515067958,-151.0,0.000166,2]
[351327433,1738515067968,-158.10222123,0.00016712,2]
[351327434,1738515067980,-341.89777877,0.00016712,2]
[351327435,1738515067989,-154.565545,0.00016712,2]
[351327436,1738515068090,-500.0,0.00016849,2]
[351327437,1738515068100,-187.292,0.00016983,2]
[351327438,1738515068115,-500.0,0.00016986,2]
[351327439,1738515068124,-121.78294339,0.00017123,2]
[351327440,1738515068136,-378.21705661,0.00017123,2]
[351327441,1738515068146,-62.33248786,0.00017671,2]
[351327442,1738515068157,-6077.68834401,0.00017671,2]
[351327443,1738515068167,-500.0,0.00017671,2]
[351327444,1738515068177,-1298.86,0.00017671,2]
[351327445,1738515068187,-500.0,0.00017671,2]
[351327446,1738515068197,-500.0,0.00017671,2]
[351327447,1738515068207,-651.13,0.00017671,2]
[351327448,1738515068216,-1601.77,0.00017671,2]
[351327449,1738515068225,-500.0,0.00017671,2]
[351327450,1738515068235,-500.0,0.00017671,2]
[351327451,1738515068244,-500.0,0.00017671,2]
[351327452,1738515068253,-500.0,0.00017671,2]
[351327453,1738515068263,-500.0,0.00017671,2]
[351327454,1738515068272,-1406.01,0.00017671,2]
[351327455,1738515068281,-982.89,0.00017671,2]
[351327456,1738515068291,-449.32665336,0.00017671,2]
[351327457,1738515068302,-1075.0000002,0.00017671,2]
[351327458,1738515068397,-500.0,0.00016438,2]
[351327459,1738515068407,-500.0,0.00016438,2]
[351327460,1738515068417,-500.0,0.00016575,2]
[351327461,1738515068427,-141.34334644,0.00017671,2]
[351327462,1738515068437,-500.0,0.00017671,2]
[351327463,1738515068446,-1358.33,0.00017671,2]
[351327464,1738515068456,-500.0,0.00017671,2]
[351327465,1738515068466,-1884.03996022,0.00017671,2]
[351327466,1738515068479,-2837.5,0.00017671,2]
[351327470,1738515141443,1000.0,0.00016,16]
[351327497,1738515502548,177.046526,0.00013699,2]
[351327508,1738515838253,227.703021,0.00013973,2]
[351327516,1738516033994,1511.56192152,0.0001511,2]
[351327578,1738516232307,-335.53331201,0.00015342,2]
[351327581,1738516232319,-164.46668799,0.00015342,2]
[351327582,1738516232329,-270.145988,0.00015424,2]
[351327583,1738516232338,-194.84886919,0.00016338,2]
[351327584,1738516232348,-218.69694387,0.00016338,2]
[351327586,1738516232358,-186.89151115,0.000164,2]
[351327589,1738516232377,-1365.07422015,0.000164,2]
[351327591,1738516232392,-892.47764019,0.000164,2]
[351327594,1738516232406,-450.3125272,0.000164,2]
[351327596,1738516232418,-105.24410131,0.000164,2]
[351327597,1738516232429,-4598.35071226,0.00016406,2]
[351327599,1738516232441,-300.0,0.00016409,2]
[351327601,1738516232450,-3000.0,0.0001641,2]
[351327603,1738516232461,-3000.0,0.0001642,2]
[351327604,1738516232472,-3000.0,0.0001643,2]
[351327606,1738516232481,-159.5736635,0.00016437,2]
[351327607,1738516232491,-165.8679604,0.00016437,2]
[351327608,1738516232501,-500.0,0.00016437,2]
[351327610,1738516232514,-344.83900729,0.00016437,2]
[351327613,1738516232524,-500.0,0.00016437,2]
[351327615,1738516232534,-500.0,0.00016437,2]
[351327618,1738516232543,-500.0,0.00016437,2]
[351327620,1738516232553,-500.0,0.00016437,2]
[351327621,1738516232563,-500.0,0.00016437,2]
[351327622,1738516232572,-500.0,0.00016437,2]
[351327623,1738516232582,-238.20279671,0.00016437,2]
[351327624,1738516232592,-500.0,0.00016437,2]
[351327625,1738516232602,-500.0,0.00016437,2]
[351327626,1738516232611,-1462.92175853,0.00016437,2]
[351327627,1738516232623,-2807.10289979,0.00016437,2]
[351327628,1738516232633,-500.0,0.00016437,2]
[351327629,1738516232642,-360.64951376,0.00016437,2]
[351327630,1738516232652,-500.0,0.00016438,2]
[351327631,1738516232663,-500.0,0.00016438,2]
[351327632,1738516232673,-500.0,0.00016438,2]
[351327633,1738516232683,-500.0,0.00016438,2]
[351327634,1738516232698,-378.64758645,0.00016438,2]
[351327635,1738516232884,-121.35241355,0.00016438,2]
[351327636,1738516232896,-500.0,0.00016438,2]
[351327637,1738516232906,-500.0,0.00016438,2]
[351327638,1738516232915,-529.82955612,0.00016438,2]
[351327639,1738516232926,-500.0,0.00016438,2]
[351327640,1738516232936,-500.0,0.00016438,2]
[351327641,1738516232949,-532.46810242,0.00016438,2]
[351327642,1738516232960,-500.0,0.00016438,2]
[351327643,1738516232971,-500.0,0.00016438,2]
[351327644,1738516232985,-500.0,0.00016438,2]
[351327645,1738516232996,-520.48823422,0.00016438,2]
[351327646,1738516233006,-440.43738262,0.00016438,2]
[351327647,1738516233017,-504.28613947,0.00016438,2]
[351327648,1738516233030,-500.0,0.00016438,2]
[351327649,1738516233042,-500.0,0.00016438,2]
[351327650,1738516233054,-500.0,0.00016438,2]
[351327651,1738516233066,-510.8447612,0.00016438,2]
[351327652,1738516233080,-500.0,0.00016438,2]
[351327653,1738516233095,-517.87299875,0.00016438,2]
[351327654,1738516233108,-500.0,0.00016438,2]
[351327655,1738516233120,-500.0,0.00016438,2]
[351327656,1738516233132,-500.0,0.00016438,2]
[351327657,1738516233145,-500.0,0.00016438,2]
[351327658,1738516233159,-500.0,0.00016438,2]
[351327659,1738516233172,-510.30258903,0.00016438,2]
[351327660,1738516233186,-523.54069269,0.00016438,2]
[351327661,1738516233209,-500.0,0.00016438,2]
[351327662,1738516233222,-509.88847311,0.00016438,2]
[351327663,1738516233233,-219.99597605,0.00016438,2]
[351327664,1738516233245,-500.0,0.00016438,2]
[351327665,1738516233257,-312.84268077,0.00016438,2]
[351327666,1738516233273,-188.47692335,0.00016438,2]
[351327667,1738516233285,-282.79657902,0.00016438,2]
[351327668,1738516233299,-217.20342098,0.00016438,2]
[351327669,1738516233311,-156.43065052,0.00016438,2]
[351327670,1738516233326,-343.56934948,0.00016438,2]
[351327671,1738516233337,-500.0,0.00016438,2]
[351327672,1738516233349,-375.14383853,0.00016438,2]
[351327673,1738516233360,-500.0,0.00016438,2]
[351327674,1738516233372,-506.05398533,0.00016438,2]
[351327675,1738516233383,-517.73103159,0.00016438,2]
[351327676,1738516233394,-500.0,0.00016438,2]
[351327677,1738516233405,-640.64608083,0.00016438,2]
[351327678,1738516233417,-500.0,0.00016438,2]
[351327679,1738516233428,-565.15851479,0.00016438,2]
[351327680,1738516233442,-500.0,0.00016438,2]
[351327681,1738516233453,-500.0,0.00016438,2]
[351327682,1738516233465,-391.75589458,0.00016438,2]
[351327683,1738516233476,-500.0,0.00016438,2]
[351327684,1738516233487,-500.0,0.00016438,2]
[351327685,1738516233497,-500.0,0.00016438,2]
[351327686,1738516233509,-500.0,0.00016438,2]
[351327687,1738516233519,-501.26228374,0.00016438,2]
[351327688,1738516233530,-500.0,0.00016438,2]
[351327689,1738516233540,-500.0,0.00016438,2]
[351327690,1738516233550,-500.0,0.00016438,2]
[351327691,1738516233561,-500.0,0.00016438,2]
[351327692,1738516233572,-500.0,0.00016438,2]
[351327693,1738516233584,-437.4458172,0.00016438,2]
[351327694,1738516233595,-557.17726529,0.00016438,2]
[351327695,1738516233605,-500.0,0.00016438,2]
[351327696,1738516233616,-500.0,0.00016438,2]
[351327697,1738516233626,-500.0,0.00016438,2]
[351327698,1738516233638,-500.0,0.00016438,2]
[351327699,1738516233648,-500.0,0.00016438,2]
[351327700,1738516233659,-500.0,0.00016438,2]
[351327701,1738516233668,-500.0,0.00016438,2]
[351327702,1738516233678,-500.0,0.00016438,2]
[351327703,1738516233691,-500.0,0.00016438,2]
[351327704,1738516233703,-500.0,0.00016438,2]
[351327705,1738516233714,-500.0,0.00016438,2]
[351327706,1738516233724,-500.0,0.00016438,2]
[351327707,1738516233734,-500.0,0.00016438,2]
[351327708,1738516233744,-508.10177185,0.00016438,2]
[351327709,1738516233756,-500.0,0.00016438,2]
[351327710,1738516233765,-500.0,0.00016438,2]
[351327711,1738516233775,-436.18575386,0.00016438,2]
[351327712,1738516233785,-500.0,0.00016438,2]
[351327713,1738516233796,-500.0,0.00016438,2]
[351327714,1738516233808,-500.0,0.00016438,2]
[351327715,1738516233819,-500.0,0.00016438,2]
[351327716,1738516233830,-500.0,0.00016438,2]